bitfinex/quotes_BTCUSD_20250224
["timestamp","ask_amount","ask_price","bid_price","bid_amount"]
[1740425891056,1.811009,94340.0,94328.0,0.0814]
[1740425891322,1.81269021,94340.0,94328.0,0.0814]
[1740425891537,0.15,94338.0,94328.0,0.0814]
[1740425891764,0.15,94336.0,94328.0,0.0814]
[1740425891983,0.15,94334.0,94328.0,0.0814]
[1740425892206,0.15,94332.0,94328.0,0.0814]
[1740425892449,0.00168016,94331.0,94328.0,0.0814]
[1740425893969,0.002,94347.0,94328.0,0.0814]
[1740425894201,0.15,94345.0,94328.0,0.0814]
[1740425894432,0.003,94340.0,94328.0,0.0814]
[1740425894672,0.15,94338.0,94328.0,0.0814]
[1740425894923,3.552617,94337.0,94328.0,0.0814]
[1740425895087,0.15,94336.0,94328.0,0.0814]
[1740425895290,0.15,94334.0,94328.0,0.0814]
[1740425895519,0.15,94332.0,94328.0,0.0814]
[1740425895914,0.00197834,94331.0,94328.0,0.0814]
[1740425897096,0.00197834,94331.0,94326.0,0.0457]
[1740425897097,0.00197834,94331.0,94322.0,0.0759]
[1740425897321,0.15,94329.0,94322.0,0.0759]
[1740425897591,0.15,94327.0,94322.0,0.0759]
[1740425897795,1.47831609,94326.0,94322.0,0.0759]
[1740425898094,0.15,94324.0,94322.0,0.0759]
[1740425898367,1.1551089,94323.0,94322.0,0.0759]
[1740425898573,0.1519689,94323.0,94322.0,0.0759]
[1740425899332,0.1519689,94323.0,94322.0,0.07633121]
[1740425899774,0.0019689,94323.0,94322.0,0.24311775]
[1740425899995,0.17129208,94353.0,94323.0,0.14134085]
[1740425900208,0.15,94346.0,94327.0,0.01454085]
[1740425900423,0.15,94344.0,94328.0,0.10264569]
[1740425900631,1.817376,94343.0,94328.0,0.10264569]
[1740425900831,1.81934346,94343.0,94328.0,0.10264569]
[1740425901046,0.15,94341.0,94326.0,0.0808]
[1740425901248,0.15,94339.0,94326.0,0.0808]
[1740425901484,0.15,94337.0,94326.0,0.0808]
[1740425901713,0.00196866,94336.0,94326.0,0.0808]
[1740425901931,0.15,94340.0,94326.0,0.0808]
[1740425902139,0.15,94334.0,94326.0,0.0808]
[1740425902353,0.15,94332.0,94326.0,0.0808]
[1740425902560,0.00197041,94331.0,94326.0,0.0808]
[1740425902775,0.003,94339.0,94326.0,0.0808]
[1740425902981,0.15,94337.0,94326.0,0.0808]
[1740425903189,0.15,94335.0,94326.0,0.0808]
[1740425903400,0.15,94333.0,94326.0,0.0808]
[1740425903607,0.00197081,94332.0,94326.0,0.0808]
[1740425904930,0.01660893,94350.0,94326.0,0.0808]
[1740425905211,0.15,94346.0,94326.0,0.0808]
[1740425905410,0.15,94344.0,94326.0,0.0808]
[1740425905632,0.15,94342.0,94326.0,0.0808]
[1740425905851,0.15,94340.0,94326.0,0.0808]
[1740425906083,0.15,94338.0,94326.0,0.0808]
[1740425906318,0.15,94336.0,94326.0,0.0808]
[1740425906543,3.43660297,94335.0,94326.0,0.0808]
[1740425906768,0.15,94333.0,94326.0,0.0808]
[1740425906981,0.0016683,94332.0,94326.0,0.0808]
[1740425907422,0.15,94330.0,94326.0,0.0808]
[1740425907672,1.26023163,94329.0,94326.0,0.0808]
[1740425907888,0.15,94327.0,94326.0,0.0808]
[1740425908130,1.91061796,94327.0,94326.0,0.0808]
[1740425908365,1.78123696,94327.0,94326.0,0.0808]
[1740425910032,1.54664196,94327.0,94326.0,0.0808]
[1740425910473,1.48262196,94327.0,94326.0,0.0808]
[1740425911426,1.28012396,94327.0,94326.0,0.0808]
[1740425911635,0.00166696,94327.0,94326.0,0.0808]
[1740425912088,0.24466546,94347.0,94326.0,0.0808]
[1740425912295,1.67208573,94346.0,94326.0,0.0808]
[1740425912493,1.67208573,94346.0,94328.0,0.0788]
[1740425912494,1.062548,94345.0,94328.0,0.0788]
[1740425912737,0.404177,94344.0,94328.0,0.0788]
[1740425913021,0.15,94343.0,94328.0,0.0788]
[1740425913228,0.00166603,94342.0,94328.0,0.0788]
[1740425913439,1.461784,94341.0,94328.0,0.0788]
[1740425913657,0.15,94339.0,94328.0,0.0788]
[1740425913862,0.00166233,94340.0,94328.0,0.0788]
[1740425914111,0.00196235,94338.0,94328.0,0.0788]
[1740425914282,0.005,94346.0,94328.0,0.0788]
[1740425914475,0.003,94342.0,94328.0,0.0788]
[1740425914677,0.003,94339.0,94328.0,0.0788]
[1740425914876,0.15,94337.0,94328.0,0.0788]
[1740425915075,0.15,94335.0,94328.0,0.0788]
[1740425915280,0.15,94333.0,94328.0,0.0788]
[1740425915448,0.15,94331.0,94328.0,0.0788]
[1740425915658,0.994088,94330.0,94328.0,0.0788]
[1740425915866,0.99605872,94330.0,94328.0,0.0796499]
[1740425916240,0.00197072,94330.0,94328.0,0.0796499]
[1740425917097,0.001,94335.0,94328.0,0.0796499]
[1740425917337,0.15,94333.0,94328.0,0.0796499]
[1740425917751,0.00197112,94332.0,94328.0,0.0796499]
[1740425920166,0.01905077,94351.0,94328.0,0.0796499]
[1740425920378,0.15,94346.0,94328.0,0.0796499]
[1740425920563,0.15,94344.0,94328.0,0.0796499]
[1740425920726,0.15,94342.0,94328.0,0.0796499]
[1740425920986,1.91051656,94341.0,94328.0,0.0796499]
[1740425921158,0.15,94339.0,94328.0,0.0796499]
[1740425921387,0.15,94337.0,94328.0,0.0796499]
[1740425921587,0.15,94335.0,94328.0,0.0796499]
[1740425921788,0.15,94333.0,94328.0,0.0796499]
[1740425921986,0.00196659,94332.0,94328.0,0.0796499]
[1740425923357,0.00196659,94332.0,94329.0,0.10264569]
[1740425923568,0.003,94344.0,94330.0,0.1285]
[1740425923569,0.006,94344.0,94330.0,0.1285]
[1740425923777,0.15,94342.0,94332.0,0.0805]
[1740425923994,0.15,94340.0,94332.0,0.0805]
[1740425924216,0.15,94338.0,94332.0,0.0805]
[1740425924442,0.15,94336.0,94332.0,0.0805]
[1740425924891,0.0019672,94335.0,94332.0,0.0805]
[1740425927295,0.001,94340.0,94332.0,0.0805]
[1740425927502,0.15,94338.0,94332.0,0.0805]
[1740425927716,0.15,94336.0,94332.0,0.0805]
[1740425928178,0.00197072,94335.0,94332.0,0.0805]
[1740425928881,0.1595,94334.0,94332.0,0.0805]
[1740425929368,0.00197271,94333.0,94332.0,0.0805]
[1740425929841,0.01660831,94342.0,94332.0,0.0805]
[1740425930079,0.15,94340.0,94332.0,0.0805]
[1740425930321,0.15,94338.0,94332.0,0.0805]
[1740425930557,0.15,94336.0,94332.0,0.0805]
[1740425930799,0.15,94334.0,94332.0,0.0805]
[1740425931270,0.00196813,94333.0,94332.0,0.0805]
[1740425931967,2.51101513,94333.0,94332.0,0.0805]
[1740425932185,1.64654313,94333.0,94332.0,0.0805]
[1740425932396,0.00196813,94333.0,94332.0,0.0805]
[1740425932844,0.01660831,94342.0,94332.0,0.0805]
[1740425933063,0.001,94336.0,94332.0,0.0805]
[1740425933509,0.00188042,94335.0,94332.0,0.0805]
[1740425933774,0.15,94346.0,94332.0,0.0805]
[1740425934005,0.15,94344.0,94332.0,0.0805]
[1740425934255,0.15,94342.0,94332.0,0.0805]
[1740425934490,0.001,94336.0,94332.0,0.0805]
[1740425934743,0.001,94335.0,94332.0,0.0805]
[1740425934981,0.00287843,94335.0,94332.0,0.0805]
[1740425935170,0.11371623,94351.0,94332.0,0.0805]
[1740425935171,0.0127705,94351.0,94332.0,0.0805]
[1740425935345,0.00808021,94339.0,94332.0,0.0805]
[1740425936640,1.839144,94338.0,94332.0,0.0805]
[1740425937075,0.00187922,94337.0,94332.0,0.0805]
[1740425937625,2.190624,94336.0,94332.0,0.0805]
[1740425937845,1.791284,94335.0,94332.0,0.0805]
[1740425938089,0.00188161,94335.0,94332.0,0.0805]
[1740425938316,1.791284,94334.0,94332.0,0.0805]
[1740425938514,0.00188161,94335.0,94332.0,0.0805]
[1740425938714,0.00188082,94333.0,94332.0,0.0805]
[1740425938980,0.002,94338.0,94332.0,0.0805]
[1740425939203,1.755442,94337.0,94332.0,0.0805]
[1740425939433,0.762239,94336.0,94332.0,0.0805]
[1740425939702,0.001,94335.0,94332.0,0.0805]
[1740425939936,1.505542,94334.0,94332.0,0.0813499]
[1740425940601,0.00187629,94333.0,94332.0,0.0813499]
[1740425940831,1.52212429,94333.0,94332.0,0.0813499]
[1740425941051,0.75342229,94333.0,94332.0,0.0813499]
[1740425941273,0.00187629,94333.0,94332.0,0.0813499]
[1740425941740,0.001,94337.0,94332.0,0.0813499]
[1740425941955,0.00808021,94339.0,94332.0,0.0813499]
[1740425943025,0.001,94337.0,94332.0,0.0813499]
[1740425943505,0.01660816,94346.0,94332.0,0.0813499]
[1740425943714,0.001,94339.0,94334.0,0.0761]
[1740425943929,0.002,94339.0,94334.0,0.0761]
[1740425945015,0.774429,94338.0,94334.0,0.0761]
[1740425945410,0.00180363,94337.0,94334.0,0.0761]
[1740425945829,0.952842,94336.0,94334.0,0.0761]
[1740425946282,0.00180561,94335.0,94334.0,0.0761]
[1740425946483,1.36295961,94335.0,94334.0,0.0761]
[1740425946701,0.21549061,94335.0,94334.0,0.0761]
[1740425946899,0.16415861,94335.0,94334.0,0.0761]
[1740425947112,0.00180561,94335.0,94334.0,0.0761]
[1740425947550,2.239008,94337.0,94334.0,0.0761]
[1740425947994,2.24081361,94336.0,94334.0,0.0761]
[1740425948212,2.255761,94335.0,94334.0,0.0761]
[1740425948871,0.00180561,94335.0,94334.0,0.0761]
[1740425949285,0.15,94340.0,94334.0,0.0761]
[1740425949556,2.350545,94335.0,94334.0,0.0761]
[1740425949780,0.15,94338.0,94334.0,0.0761]
[1740425950063,2.42416288,94335.0,94334.0,0.0761]
[1740425950336,0.15,94335.0,94334.0,0.0761]
[1740425950554,0.15,94334.0,94332.0,0.0008499]
[1740425950819,3.702617,94334.0,94332.0,0.0008499]
[1740425951067,0.14089425,94352.0,94319.0,0.01541771]
[1740425951068,0.15,94332.0,94319.0,0.01541771]
[1740425951326,0.15,94330.0,94297.0,0.30473333]
[1740425951562,0.15,94328.0,94297.0,0.30473333]
[1740425951788,0.15,94326.0,94297.0,0.30473333]
[1740425952017,0.15,94324.0,94297.0,0.30473333]
[1740425952251,0.15,94322.0,94296.0,0.0008496]
[1740425952476,0.15,94320.0,94296.0,0.0008496]
[1740425952702,0.15,94318.0,94296.0,0.0008496]
[1740425952927,3.552617,94317.0,94296.0,0.0008496]
[1740425953191,0.15,94316.0,94296.0,0.0008496]
[1740425953440,0.15,94314.0,94296.0,0.0008496]
[1740425953682,0.15,94312.0,94296.0,0.0008496]
[1740425953912,2.213799,94312.0,94296.0,0.0008496]
[1740425954153,1.80296046,94312.0,94296.0,0.0008496]
[1740425954406,0.37664846,94312.0,94311.0,0.0827]
[1740425954893,0.374879,94312.0,94311.0,0.0827]
[1740425955878,0.375879,94312.0,94311.0,0.0827]
[1740425956344,0.375879,94312.0,94311.0,0.0004]
[1740425957495,0.374879,94312.0,94311.0,0.0004]
[1740425957743,0.376879,94312.0,94311.0,0.0004]
[1740425957963,0.374879,94312.0,94311.0,0.0004]
[1740425958380,0.376879,94312.0,94311.0,0.0004]
[1740425958606,0.374879,94312.0,94311.0,0.0004]
[1740425958934,0.376879,94312.0,94311.0,0.0004]
[1740425959142,0.377879,94312.0,94311.0,0.0004]
[1740425960185,0.375879,94312.0,94311.0,0.0004]
[1740425960395,0.374879,94312.0,94311.0,0.0004]
[1740425960606,0.377879,94312.0,94311.0,0.0004]
[1740425960815,0.376879,94312.0,94311.0,0.0004]
[1740425960971,0.374879,94312.0,94311.0,0.0004]
[1740425961179,0.376879,94312.0,94311.0,0.0004]
[1740425961376,0.374879,94312.0,94311.0,0.0004]
[1740425961578,0.378879,94312.0,94311.0,0.0004]
[1740425962063,0.376879,94312.0,94311.0,0.0004]
[1740425962272,0.377879,94312.0,94311.0,0.0004]
[1740425962808,0.377879,94312.0,94311.0,0.0766]
[1740425963448,0.375879,94312.0,94311.0,0.0766]
[1740425963648,0.003,94312.0,94311.0,0.0766]
[1740425963849,0.152,94312.0,94311.0,0.0766]
[1740425964052,0.15394881,94312.0,94311.0,0.0766]
[1740425964578,0.152,94312.0,94311.0,0.0766]
[1740425964989,0.152,94312.0,94311.0,0.0774502]
[1740425975367,0.152,94312.0,94311.0,0.0012502]
[1740425975795,0.15395516,94312.0,94311.0,0.0012502]
[1740425976449,1.20633516,94312.0,94311.0,0.0012502]
[1740425976670,0.28470116,94312.0,94311.0,0.0783502]
[1740425976885,0.15395516,94312.0,94311.0,0.0783502]
[1740425977092,0.002,94312.0,94311.0,0.23069589]
[1740425977314,0.004,94312.0,94311.0,0.23069589]
[1740425977525,0.002,94312.0,94311.0,0.23069589]
[1740425977737,0.0017004,94319.0,94312.0,0.079]
[1740425977998,0.0017004,94319.0,94313.0,0.10264569]
[1740425983898,0.0017004,94319.0,94314.0,0.0781]
[1740425988079,0.0017004,94319.0,94314.0,0.06814]
[1740425992372,0.15,94349.0,94314.0,0.06814]
[1740425992559,0.15,94347.0,94314.0,0.06814]
[1740425992817,0.15,94345.0,94314.0,0.06814]
[1740425993009,0.15,94343.0,94314.0,0.06814]
[1740425993136,0.15,94341.0,94314.0,0.06814]
[1740425993354,0.15,94339.0,94314.0,0.06814]
[1740425993569,0.15,94337.0,94314.0,0.06814]
[1740425993784,0.15,94335.0,94314.0,0.06814]
[1740425994093,0.15,94333.0,94314.0,0.06814]
[1740425994305,0.15,94331.0,94314.0,0.06814]
[1740425994580,0.15801231,94329.0,94314.0,0.06814]
[1740425994777,0.15,94327.0,94314.0,0.06814]
[1740425994928,0.15,94325.0,94311.0,0.0509502]
[1740425995130,3.552617,94326.0,94311.0,0.0509502]
[1740425995131,0.15,94323.0,94311.0,0.0509502]
[1740425995325,0.15,94321.0,94311.0,0.0509502]
[1740425995534,0.15,94319.0,94311.0,0.0012502]
[1740425995780,0.15,94317.0,94311.0,0.0012502]
[1740425995983,0.15,94315.0,94311.0,0.0012502]
[1740425996384,0.15,94313.0,94311.0,0.0012502]
[1740425996589,2.222642,94312.0,94311.0,0.0012502]
[1740425996879,2.53349004,94312.0,94311.0,0.0012502]
[1740425997043,2.53540304,94312.0,94311.0,0.0012502]
[1740425997852,2.24709304,94312.0,94311.0,0.0012502]
[1740425998084,2.24909304,94312.0,94311.0,0.0012502]
[1740425999406,0.71526204,94312.0,94311.0,0.0012502]
[1740425999640,0.62956604,94312.0,94311.0,0.0012502]
[1740426000097,0.41488504,94312.0,94311.0,0.0012502]
[1740426000549,0.412681,94312.0,94311.0,0.0012502]
[1740426000818,0.410681,94312.0,94311.0,0.0012502]
[1740426001049,0.408681,94312.0,94311.0,0.0012502]
[1740426001288,0.410681,94312.0,94311.0,0.0012502]
[1740426001741,0.152,94312.0,94311.0,0.0012502]
[1740426001968,1.919213,94312.0,94311.0,0.0012502]
[1740426002484,0.15219697,94312.0,94311.0,0.1270502]
[1740426002727,0.15219697,94312.0,94311.0,0.22969589]
[1740426002942,0.15,94312.0,94311.0,0.22969589]
[1740426003126,0.0001005,94313.0,94311.0,0.14969589]
[1740426003394,0.0001005,94313.0,94312.0,0.18044569]
[1740426003638,0.0001005,94313.0,94312.0,0.0778]
[1740426005941,0.00217844,94313.0,94312.0,0.0778]
[1740426006128,0.51287844,94313.0,94312.0,0.0778]
[1740426008431,0.00217844,94313.0,94312.0,0.0778]
[1740426008807,0.0001005,94313.0,94312.0,0.0778]
[1740426011440,0.0001005,94313.0,94312.0,0.18044569]
[1740426012507,0.0001005,94313.0,94312.0,0.0778]
[1740426013284,0.15,94312.0,94311.0,0.0012502]
[1740426013484,2.461912,94312.0,94311.0,0.0012502]
[1740426013684,2.46413911,94312.0,94311.0,0.0012502]
[1740426014116,0.15222711,94312.0,94311.0,0.0012502]
[1740426014288,2.651911,94312.0,94311.0,0.0012502]
[1740426014655,2.65413224,94312.0,94311.0,0.0012502]
[1740426016090,2.65513224,94312.0,94311.0,0.0012502]
[1740426016935,2.32470724,94312.0,94311.0,0.0012502]
[1740426017751,2.32570724,94312.0,94311.0,0.0012502]
[1740426018612,2.42835293,94312.0,94311.0,0.0012502]
[1740426019034,2.32570724,94312.0,94311.0,0.0012502]
[1740426019241,2.34232097,94312.0,94311.0,0.0012502]
[1740426019882,2.32570724,94312.0,94311.0,0.0012502]
[1740426020307,0.92793124,94312.0,94311.0,0.0012502]
[1740426020516,0.92693124,94312.0,94311.0,0.0012502]
[1740426020701,0.93193124,94312.0,94311.0,0.0012502]
[1740426020940,0.92693124,94312.0,94311.0,0.0012502]
[1740426021334,0.93393124,94312.0,94311.0,0.0012502]
[1740426021575,0.93093124,94312.0,94311.0,0.0012502]
[1740426021783,0.93393124,94312.0,94311.0,0.0012502]
[1740426023147,0.96989415,94312.0,94311.0,0.0012502]
[1740426023848,0.93293124,94312.0,94311.0,0.0012502]
[1740426024335,0.94954541,94312.0,94311.0,0.0012502]
[1740426026611,0.94354541,94312.0,94311.0,0.0012502]
[1740426026833,0.94954541,94312.0,94311.0,0.0012502]
[1740426027048,0.94654541,94312.0,94311.0,0.0012502]
[1740426027816,1.03003078,94312.0,94311.0,0.0012502]
[1740426028468,0.94954541,94312.0,94311.0,0.0012502]
[1740426029525,0.94654541,94312.0,94311.0,0.0012502]
[1740426029737,0.94454541,94312.0,94311.0,0.0012502]
[1740426029957,0.92793124,94312.0,94311.0,0.0012502]
[1740426030168,0.92893124,94312.0,94311.0,0.0012502]
[1740426031751,0.92991456,94312.0,94311.0,0.0012502]
[1740426032394,0.92891456,94312.0,94311.0,0.0012502]
[1740426032609,0.65901942,94312.0,94311.0,0.0012502]
[1740426032815,0.65970573,94312.0,94311.0,0.0012502]
[1740426033205,0.65870573,94312.0,94311.0,0.0012502]
[1740426033661,0.66170573,94312.0,94311.0,0.0012502]
[1740426034281,0.6783199,94312.0,94311.0,0.0012502]
[1740426035192,0.8283199,94312.0,94311.0,0.0012502]
[1740426037046,0.0262838,94312.0,94311.0,0.0778502]
[1740426037212,0.00966963,94312.0,94311.0,0.0778502]
[1740426037568,0.007,94312.0,94311.0,0.0778502]
[1740426037772,0.003,94312.0,94311.0,0.0778502]
[1740426037988,0.0001005,94313.0,94311.0,0.0778502]
[1740426038444,0.003,94312.0,94311.0,0.18049589]
[1740426038654,0.003,94312.0,94311.0,0.22829589]
[1740426039448,0.0001005,94313.0,94311.0,0.23169589]
[1740426039675,0.0001005,94313.0,94312.0,0.23044569]
[1740426040259,0.0001005,94313.0,94312.0,0.70876587]
[1740426040483,0.0016992,94319.0,94318.0,0.159036]
[1740426040696,0.0016992,94319.0,94318.0,0.39056562]
[1740426040905,0.0016992,94319.0,94318.0,0.38808169]
[1740426041129,0.0016992,94319.0,94318.0,0.41265793]
[1740426041528,0.0016984,94353.0,94318.0,0.41265793]
[1740426041529,0.0016984,94353.0,94328.0,0.1291]
[1740426041775,0.0016984,94353.0,94329.0,0.30473333]
[1740426041968,0.00258603,94350.0,94329.0,0.30373333]
[1740426042171,0.15,94348.0,94329.0,0.30373333]
[1740426042387,0.15,94346.0,94329.0,0.30373333]
[1740426042611,0.15,94344.0,94329.0,0.30373333]
[1740426042804,1.419653,94343.0,94329.0,0.30373333]
[1740426043020,0.15,94342.0,94329.0,0.30373333]
[1740426043252,0.15,94340.0,94329.0,0.30273333]
[1740426043679,0.28377731,94339.0,94329.0,0.30273333]
[1740426043888,0.15,94337.0,94329.0,0.30273333]
[1740426044095,0.15,94335.0,94329.0,0.30273333]
[1740426044312,0.15,94333.0,94329.0,0.30273333]
[1740426044539,0.15,94331.0,94329.0,0.30373333]
[1740426044756,0.55812046,94330.0,94329.0,0.30373333]
[1740426044969,0.15,94329.0,94321.0,0.0816]
[1740426045175,0.679392,94329.0,94321.0,0.0816]
[1740426045386,0.00258683,94328.0,94321.0,0.0816]
[1740426045596,1.25507083,94328.0,94317.0,0.048]
[1740426045804,0.15,94326.0,94315.0,0.0784]
[1740426046019,0.15,94324.0,94312.0,0.00043124]
[1740426046259,0.15,94322.0,94312.0,0.00043124]
[1740426046450,0.15,94320.0,94312.0,0.00043124]
[1740426046654,0.15,94318.0,94312.0,0.00043124]
[1740426046864,0.15,94316.0,94312.0,0.00043124]
[1740426047105,0.15,94314.0,94312.0,0.00043124]
[1740426047322,3.68258969,94313.0,94312.0,0.00043124]
[1740426047578,3.68516319,94313.0,94312.0,0.00043124]
[1740426047759,3.44638519,94313.0,94312.0,0.00043124]
[1740426047985,3.4629995,94313.0,94312.0,0.00043124]
[1740426048197,2.70352881,94313.0,94312.0,0.00043124]
[1740426048434,2.25500381,94313.0,94312.0,0.00043124]
[1740426049086,2.25800381,94313.0,94312.0,0.00043124]
[1740426049750,2.2413895,94313.0,94312.0,0.00043124]
[1740426049934,2.2443895,94313.0,94312.0,0.00043124]
[1740426050247,2.34703519,94313.0,94312.0,0.00043124]
[1740426051293,2.23203119,94313.0,94312.0,0.00043124]
[1740426051709,2.1293855,94313.0,94312.0,0.00043124]
[1740426055989,0.17518802,94313.0,94312.0,0.00043124]
[1740426056215,0.15,94312.0,94311.0,0.00043125]
[1740426056433,3.579944,94312.0,94310.0,1.96854757]
[1740426056675,3.68258969,94311.0,94310.0,1.96854757]
[1740426057047,3.6851577,94311.0,94310.0,1.96854757]
[1740426057590,3.6851577,94311.0,94310.0,1.82060957]
[1740426057821,3.69969855,94311.0,94310.0,1.78872589]
[1740426058039,3.69969855,94311.0,94310.0,1.75684221]
[1740426058310,3.71369855,94311.0,94310.0,1.72495853]
[1740426058547,3.86574655,94311.0,94310.0,1.65052853]
[1740426058760,3.85874655,94311.0,94310.0,0.25569589]
[1740426058947,4.02172599,94311.0,94310.0,0.25569589]
[1740426059156,4.02442599,94311.0,94310.0,0.25569589]
[1740426059363,4.04442599,94311.0,94310.0,0.22381221]
[1740426059706,4.05142599,94311.0,94310.0,0.19192853]
[1740426060130,4.03742599,94311.0,94310.0,0.16592009]
[1740426060342,4.05221995,94311.0,94310.0,0.00109724]
[1740426060564,4.05221995,94311.0,94296.0,0.0008496]
[1740426060565,0.32630585,94301.0,94296.0,0.0008496]
[1740426060777,0.15,94279.0,94271.0,0.0004]
[1740426060989,0.02,94291.0,94271.0,0.0004]
[1740426060990,0.15,94277.0,94271.0,0.0004]
[1740426061212,0.15,94275.0,94271.0,0.0004]
[1740426061418,0.00788424,94272.0,94271.0,0.0004]
[1740426061607,2.22392924,94272.0,94271.0,0.0004]
[1740426061847,2.288312,94272.0,94271.0,0.0004]
[1740426062064,2.21857415,94272.0,94271.0,0.0004]
[1740426062280,0.80692819,94272.0,94271.0,0.0004]
[1740426063159,0.83288091,94272.0,94271.0,0.0004]
[1740426063805,0.83688091,94272.0,94271.0,0.0004]
[1740426064253,0.85750221,94272.0,94271.0,0.0004]
[1740426064469,0.94004229,94272.0,94271.0,0.0004]
[1740426064689,0.50691121,94272.0,94271.0,0.0004]
[1740426064894,0.49126721,94272.0,94271.0,0.0503]
[1740426065099,0.49826721,94272.0,94271.0,0.0503]
[1740426066376,0.49126721,94272.0,94271.0,0.0503]
[1740426066636,0.54018379,94272.0,94271.0,0.0004]
[1740426066841,0.54618379,94272.0,94271.0,0.0004]
[1740426067054,0.54218379,94272.0,94271.0,0.0004]
[1740426067265,0.20153621,94272.0,94271.0,0.0004]
[1740426067475,0.20653621,94272.0,94271.0,0.082]
[1740426067702,0.20053621,94272.0,94271.0,0.082]
[1740426068118,0.17958349,94272.0,94271.0,0.082]
[1740426068333,0.19754184,94272.0,94271.0,0.082]
[1740426068538,0.19254184,94272.0,94271.0,0.082]
[1740426068746,0.19254184,94272.0,94271.0,0.1293]
[1740426069297,0.21337455,94272.0,94271.0,0.1293]
[1740426069724,0.22337455,94272.0,94271.0,0.1293]
[1740426069926,0.21937455,94272.0,94271.0,0.1293]
[1740426070127,0.21437455,94272.0,94271.0,0.1293]
[1740426070338,0.02058349,94272.0,94271.0,0.1293]
[1740426070539,0.00243304,94272.0,94271.0,0.43351824]
[1740426070742,0.00243304,94272.0,94271.0,0.61914606]
[1740426071204,0.00243304,94272.0,94271.0,0.51650037]
[1740426071423,0.00143304,94272.0,94271.0,0.51650037]
[1740426071892,0.00243304,94272.0,94271.0,0.51650037]
[1740426072095,0.00243304,94272.0,94271.0,0.43203333]
[1740426072546,0.00143304,94272.0,94271.0,0.43288313]
[1740426072996,0.00043304,94272.0,94271.0,0.43288313]
[1740426073270,0.00143304,94272.0,94271.0,0.43288313]
[1740426073747,0.00043304,94272.0,94271.0,0.43288313]
[1740426074204,0.00143304,94272.0,94271.0,0.53552882]
[1740426078558,0.00143304,94272.0,94271.0,0.43288313]
[1740426079720,0.00143304,94272.0,94271.0,0.0012498]
[1740426079721,3.17435504,94272.0,94271.0,0.0012498]
[1740426079941,2.45994973,94272.0,94271.0,0.0012498]
[1740426080166,2.25702265,94272.0,94271.0,0.0012498]
[1740426080379,1.25544365,94272.0,94271.0,0.0012498]
[1740426080640,1.25444365,94272.0,94271.0,0.0012498]
[1740426081083,1.25844365,94272.0,94271.0,0.0012498]
[1740426081300,1.15579796,94272.0,94271.0,0.0012498]
[1740426081519,1.15179796,94272.0,94271.0,0.0012498]
[1740426082887,1.15479796,94272.0,94271.0,0.0012498]
[1740426083102,1.15879796,94272.0,94271.0,0.0012498]
[1740426083313,0.15668896,94272.0,94271.0,0.0012498]
[1740426083540,0.17731027,94272.0,94271.0,0.0012498]
[1740426083963,0.17331027,94272.0,94271.0,0.0012498]
[1740426084399,0.57087827,94272.0,94271.0,0.0012498]
[1740426084624,0.18533559,94272.0,94271.0,0.0012498]
[1740426084837,0.18133559,94272.0,94271.0,0.0012498]
[1740426085546,0.18433559,94272.0,94271.0,0.0012498]
[1740426085740,0.18133559,94272.0,94271.0,0.0012498]
[1740426085994,0.19946915,94272.0,94271.0,0.0012498]
[1740426086228,0.20346915,94272.0,94271.0,0.0012498]
[1740426086419,0.19546915,94272.0,94271.0,0.0012498]
[1740426086892,1.81240515,94272.0,94271.0,0.0012498]
[1740426087185,3.63341315,94272.0,94271.0,0.0012498]
[1740426087418,3.36930515,94272.0,94271.0,0.0012498]
[1740426088390,3.29804415,94272.0,94271.0,0.0012498]
[1740426088804,3.29404415,94272.0,94271.0,0.0012498]
[1740426089552,3.27742284,94272.0,94271.0,0.0012498]
[1740426090217,2.97929784,94272.0,94271.0,0.0012498]
[1740426090439,2.58324784,94272.0,94271.0,0.0012498]
[1740426094080,2.59986953,94272.0,94271.0,0.0012498]
[1740426095777,2.46258972,94272.0,94270.0,0.05239479]
[1740426096052,3.379567,94271.0,94270.0,0.05239479]
[1740426096290,3.379567,94271.0,94270.0,0.04921526]
[1740426096531,3.38189495,94271.0,94270.0,0.01731525]
[1740426096775,3.38189495,94271.0,94250.0,4e-05]
[1740426097009,3.47951269,94270.0,94250.0,4e-05]
[1740426097249,3.376867,94269.0,94250.0,4e-05]
[1740426097474,3.376867,94268.0,94250.0,4e-05]
[1740426097699,3.376867,94267.0,94250.0,4e-05]
[1740426097913,3.62951269,94266.0,94250.0,4e-05]
[1740426098135,0.15,94264.0,94250.0,4e-05]
[1740426098387,0.15,94262.0,94250.0,4e-05]
[1740426098666,0.15,94260.0,94250.0,4e-05]
[1740426098912,3.376867,94259.0,94250.0,4e-05]
[1740426099174,0.15,94257.0,94250.0,4e-05]
[1740426099412,0.15,94255.0,94250.0,4e-05]
[1740426099689,0.15,94253.0,94250.0,4e-05]
[1740426100124,0.15,94251.0,94250.0,4e-05]
[1740426100358,1.561785,94251.0,94250.0,4e-05]
[1740426100608,1.66443069,94251.0,94250.0,4e-05]
[1740426100846,1.66650789,94251.0,94250.0,4e-05]
[1740426101318,1.5142832,94251.0,94250.0,4e-05]
[1740426101817,1.2304141,94251.0,94250.0,4e-05]
[1740426102084,1.23241232,94251.0,94250.0,4e-05]
[1740426102330,3.24907322,94251.0,94250.0,4e-05]
[1740426103195,3.24707322,94251.0,94250.0,4e-05]
[1740426103413,3.35941891,94251.0,94250.0,4e-05]
[1740426103627,3.50941891,94251.0,94250.0,4e-05]
[1740426103845,3.50941891,94251.0,94237.0,0.0008501]
[1740426103846,0.15,94250.0,94237.0,0.0008501]
[1740426104051,3.395075,94250.0,94237.0,0.0008501]
[1740426104262,0.15,94248.0,94237.0,0.0008501]
[1740426104475,0.15,94246.0,94237.0,0.0008501]
[1740426104697,0.15,94246.0,94226.0,0.0140914]
[1740426104698,3.265075,94245.0,94226.0,0.0140914]
[1740426104915,0.15,94243.0,94226.0,0.0140914]
[1740426105127,1.545244,94242.0,94227.0,0.0814]
[1740426105332,0.01662849,94239.0,94227.0,0.0814]